bitfinex/quotes_ETHUSD_20241116
["timestamp","ask_amount","ask_price","bid_price","bid_amount"]
[1731772574396,0.07972814,3135.9,3135.4,6.18937]
[1731772574680,0.07972435,3136.2,3135.7,3.18907]
[1731772575189,3.18829,3136.5,3135.8,3.18892]
[1731772575190,0.07972306,3136.4,3135.8,3.18892]
[1731772575684,0.07972306,3136.4,3135.9,3.18887]
[1731772576253,3.26810306,3136.4,3135.7,6.18903]
[1731772576455,0.07972306,3136.4,3135.7,6.18903]
[1731772576773,3.18847,3136.3,3135.6,6.18911]
[1731772576940,0.07971859,3136.2,3135.6,6.18911]
[1731772577146,0.07971859,3136.2,3135.8,3.0]
[1731772577541,3.18827,3136.5,3135.8,6.18897]
[1731772577542,0.07971866,3136.4,3135.8,6.18897]
[1731772577983,0.07971866,3136.4,3135.8,3.0]
[1731772578188,0.55,3136.5,3136.0,3.18876]
[1731772578485,0.55,3136.5,3135.3,3.18948]
[1731772578486,3.73854,3136.3,3135.5,6.1892]
[1731772578703,3.18899,3135.8,3134.9,3.18986]
[1731772578896,3.18899,3135.8,3133.3,6.32564816]
[1731772578897,0.62973366,3136.1,3135.4,3.18935]
[1731772579186,0.62973366,3136.1,3134.5,3.7537757]
[1731772579187,3.73818,3136.6,3135.9,3.18879]
[1731772579399,0.55,3136.4,3135.9,3.18879]
[1731772579600,0.07971766,3136.5,3135.9,3.18879]
[1731772579807,0.69513057,3137.1,3134.9,3.7537757]
[1731772579808,3.18816,3136.6,3135.6,3.18914]
[1731772579990,3.26807224,3136.5,3135.7,3.0]
[1731772580178,3.26807224,3136.5,3134.9,3.18981]
[1731772580179,3.26807224,3136.5,3135.9,3.0]
[1731772580830,3.26807224,3136.5,3135.7,3.0]
[1731772580831,3.18854,3136.3,3135.7,3.0]
[1731772581100,3.26807224,3136.5,3135.9,3.0]
[1731772581308,0.07971224,3136.5,3136.1,3.18865]
[1731772581492,0.07971428,3136.8,3136.1,3.18865]
[1731772581666,3.18787,3136.9,3136.2,3.18854]
[1731772581667,0.07970842,3136.9,3136.2,3.18854]
[1731772581868,0.07970842,3136.9,3136.4,3.18829]
[1731772582710,0.07970842,3136.9,3135.7,3.18902]
[1731772582711,0.07970642,3137.1,3136.5,3.18826]
[1731772583080,0.07970642,3137.1,3136.4,3.0]
[1731772583288,0.07970642,3137.1,3136.6,3.18815]
[1731772583506,0.40643406,3137.1,3136.6,3.18815]
[1731772583991,0.07970642,3137.1,3136.6,3.18815]
[1731772584115,0.1441639,3137.6,3136.3,0.06376514]
[1731772584116,3.73736,3137.4,3136.3,0.06376514]
[1731772584274,3.73736,3137.4,3136.8,3.18788]
[1731772584275,0.07969564,3137.3,3136.8,3.18788]
[1731772585113,0.07969564,3137.3,3136.9,3.0]
[1731772585519,0.1441639,3137.6,3136.4,3.0]
[1731772585520,0.22385909,3137.6,3136.4,3.0]
[1731772585821,0.1441639,3137.6,3137.1,3.0]
[1731772586024,0.1441639,3137.6,3137.2,3.18754]
[1731772586521,0.1441639,3137.6,3137.3,3.18743]
[1731772586692,0.1441639,3137.6,3137.1,6.18762]
[1731772587329,0.1441639,3137.6,3137.3,3.18744]
[1731772587493,0.1441639,3137.6,3137.4,3.18734]
[1731772588015,0.1441639,3137.6,3137.5,3.18725]
[1731772588225,0.1441639,3137.6,3137.4,3.18734]
[1731772588383,0.1441639,3137.6,3136.4,3.0]
[1731772588577,0.22384269,3137.6,3137.1,3.0]
[1731772588780,0.22384269,3137.6,3137.1,6.18764]
[1731772589027,0.55,3137.5,3137.1,6.18764]
[1731772589384,0.55,3137.5,3137.2,3.18748]
[1731772589725,0.55,3137.5,3137.3,3.0]
[1731772590085,0.1441639,3137.6,3137.4,3.18733]
[1731772590565,0.1441639,3137.6,3136.5,3.7437757]
[1731772590566,0.1441639,3137.6,3137.5,6.18725]
[1731772590714,0.1441639,3137.6,3137.2,3.18747]
[1731772590945,0.1441639,3137.6,3136.7,3.18805]
[1731772590946,0.1441639,3137.6,3137.3,6.18744]
[1731772591543,0.1441639,3137.6,3137.2,3.0]
[1731772591731,0.55,3137.5,3137.2,3.0]
[1731772592747,0.1441639,3137.6,3137.4,6.18735]
[1731772593076,0.1441639,3137.6,3137.2,6.18748]
[1731772593575,0.1441639,3137.6,3137.3,3.18744]
[1731772593878,0.1441639,3137.6,3137.4,3.0]
[1731772594433,0.1441639,3137.6,3137.1,3.0]
[1731772594693,0.1441639,3137.6,3137.1,3.06374543]
[1731772594839,0.1441639,3137.6,3137.5,6.18725]
[1731772595041,0.1441639,3137.6,3137.4,3.0]
[1731772595250,0.1441639,3137.6,3137.3,3.18739]
[1731772595583,0.1441639,3137.6,3137.4,3.0]
[1731772596646,0.1441639,3137.6,3137.5,6.18725]
[1731772597288,0.1441639,3137.6,3137.5,6.50585]
[1731772598643,0.1441639,3137.6,3137.4,3.0]
[1731772599043,0.1441639,3137.6,3136.7,3.18805]
[1731772599044,3.3313339,3137.6,3136.9,3.18778]
[1731772599244,0.55,3137.5,3136.9,3.18778]
[1731772599743,0.55,3137.5,3136.6,0.3186]
[1731772599744,0.07968342,3137.4,3136.6,0.3186]
[1731772600047,0.55,3137.3,3136.7,3.18798]
[1731772600401,3.26709342,3137.4,3136.1,6.9323657]
[1731772600402,3.18804,3136.8,3136.1,3.1886]
[1731772600694,3.18827,3136.5,3135.8,3.18892]
[1731772600848,0.0797114,3136.5,3135.7,3.18903]
[1731772601045,0.0797114,3136.5,3135.8,3.18896]
[1731772601357,3.73838,3136.4,3135.7,3.18901]
[1731772601562,0.55,3136.1,3135.5,0.3186]
[1731772601745,0.55,3136.1,3135.1,3.18965]
[1731772601746,3.18902,3135.8,3135.1,3.18965]
[1731772602090,3.73919,3135.6,3135.0,3.18971]
[1731772602599,0.55,3135.6,3135.1,3.18961]
[1731772602754,0.55,3135.6,3134.6,3.19019]
[1731772602952,0.55,3135.9,3135.2,3.18951]
[1731772603199,0.55,3135.9,3135.5,3.0]
[1731772603410,0.55,3135.9,3135.7,3.18907]
[1731772603651,0.55,3136.1,3135.5,3.0]
[1731772603879,0.07972593,3136.2,3135.7,3.0]
[1731772604047,3.73824,3136.6,3135.9,3.0]
[1731772604253,0.55,3136.2,3135.6,3.0]
[1731772604491,0.55,3136.2,3135.6,6.1891]
[1731772604705,0.07971692,3136.1,3135.5,3.0]
[1731772604868,0.55,3135.9,3135.5,6.25299966]
[1731772605063,3.73869,3136.1,3135.5,3.0]
[1731772605366,3.73869,3136.1,3135.4,3.18932]
[1731772605367,0.55,3136.3,3135.8,6.18893]
[1731772605572,3.26808767,3136.4,3135.8,3.0]
[1731772605751,3.18848,3136.3,3135.8,3.0]
[1731772606355,0.07971767,3136.4,3135.9,3.18883]
[1731772606758,0.07971767,3136.4,3135.8,6.18888]
[1731772606956,0.07971767,3136.4,3132.8,1.54606805]
[1731772606957,0.07971777,3136.8,3136.2,3.0]
[1731772607192,3.26771777,3136.8,3136.2,3.18856]
[1731772607703,3.26771777,3136.8,3136.3,3.0]
[1731772607888,0.07971777,3136.8,3136.3,6.18845]
[1731772608202,0.07970462,3136.9,3136.4,3.18836]
[1731772608405,0.07970461,3137.1,3136.6,3.18815]
[1731772608560,3.26737461,3137.1,3136.4,0.06376368]
[1731772608761,3.26737461,3137.1,3136.4,3.18828]
[1731772608762,0.07970461,3137.1,3136.4,3.18828]
[1731772608958,3.26735461,3137.1,3136.5,3.0]
[1731772609270,0.07970461,3137.1,3136.5,3.0]
[1731772609579,3.18735,3137.4,3136.7,3.18798]
[1731772609789,0.07969152,3137.3,3136.7,3.18798]
[1731772609992,3.18739,3137.4,3136.7,3.18798]
[1731772610195,0.07969154,3137.3,3136.7,3.18798]
[1731772610359,3.26715154,3137.3,3136.7,3.18798]
[1731772610702,0.07969154,3137.3,3136.7,3.18798]
[1731772610903,0.07969154,3137.3,3136.8,3.18793]
[1731772611070,0.07969155,3137.4,3136.8,3.18793]
[1731772611425,3.26707155,3137.4,3136.8,3.18793]
[1731772611600,3.26707155,3137.4,3136.6,3.0]
[1731772611771,3.18803,3136.8,3136.2,3.0]
[1731772612098,3.18778,3137.0,3135.9,3.18884]
[1731772612099,3.1884,3136.4,3135.9,3.0]
[1731772612264,3.1884,3136.4,3135.6,3.18909]
[1731772612265,3.18853,3136.3,3135.6,3.18909]
[1731772612457,3.18817,3136.6,3135.6,3.18911]
[1731772612763,3.18847,3136.3,3135.7,3.18907]
[1731772613502,3.18847,3136.3,3135.1,3.18961]
[1731772613686,0.07971381,3136.2,3135.6,3.18916]
[1731772613887,3.26830381,3136.2,3135.6,3.18916]
[1731772614063,0.07971381,3136.2,3135.7,3.18907]
[1731772614706,3.18768,3137.1,3136.2,3.18855]
[1731772614907,3.18786,3136.9,3136.0,3.18875]
[1731772615090,3.18814,3136.7,3136.1,3.0]
[1731772615258,0.07971058,3136.6,3136.0,3.18872]
[1731772615494,0.07971058,3136.6,3136.2,3.18849]
[1731772615693,0.0797106,3136.8,3136.1,3.0]
[1731772615855,0.0797106,3136.8,3136.2,3.18853]
[1731772616337,3.2677506,3136.8,3136.2,3.18853]
[1731772617253,3.18761,3137.2,3136.6,3.0]
[1731772617530,0.07970219,3137.1,3136.6,6.18813]
[1731772618338,3.18761,3137.2,3136.6,6.18813]
[1731772618339,0.07969746,3137.2,3136.6,6.18813]
[1731772618526,0.07969746,3137.2,3136.8,3.18792]
[1731772618733,0.07969746,3137.2,3136.8,3.0]
[1731772618887,0.07969746,3137.2,3136.8,3.18786]
[1731772619218,3.26705747,3137.4,3136.8,3.18786]
[1731772619897,3.26705747,3137.4,3136.6,6.18815]
[1731772620091,3.26715496,3137.3,3136.8,3.0]
[1731772620632,3.18814,3136.7,3135.9,0.3186]
[1731772620787,0.07971049,3136.6,3136.0,3.18869]
[1731772620984,0.07971049,3136.6,3136.1,3.18864]
[1731772621185,0.0797105,3136.8,3136.5,3.18822]
[1731772621384,0.07970381,3137.1,3136.5,3.18822]
[1731772621590,3.26732386,3137.2,3136.6,3.18809]
[1731772621819,3.26732386,3137.2,3136.5,3.18822]
[1731772622087,0.07970386,3137.2,3136.8,3.18795]
[1731772622501,3.73744,3137.4,3136.8,3.18795]
[1731772622703,0.07969756,3137.4,3136.8,3.18795]
[1731772622939,3.18795,3136.9,3136.3,3.507]
[1731772623160,0.07969948,3136.8,3136.3,3.0]
[1731772623301,3.18767,3137.1,3136.5,3.18826]
[1731772623302,0.07970394,3137.0,3136.5,3.18826]
[1731772623739,0.07970394,3137.0,3136.0,0.3186]
[1731772624066,0.07969788,3137.0,3136.6,3.0]
[1731772624249,0.07969788,3137.0,3136.3,3.18842]
[1731772624250,3.18787,3136.9,3136.3,3.0]
[1731772624466,0.07969788,3137.0,3136.5,3.18825]
[1731772624601,0.07969788,3137.0,3136.6,3.0]
[1731772624848,3.18793,3136.9,3136.3,3.0]
[1731772625045,3.18793,3136.9,3136.3,6.18846]
[1731772625202,3.18793,3136.9,3136.1,0.3186]
[1731772625203,0.07969788,3137.0,3136.5,3.0]
[1731772625404,3.26736795,3137.1,3136.5,6.18818]
[1731772625726,0.07969795,3137.1,3136.6,3.18814]
[1731772625932,0.1441639,3137.6,3137.0,3.18765]
[1731772626140,3.18726,3137.5,3136.8,3.18793]
[1731772626307,0.07969491,3137.4,3136.8,3.0]
[1731772626500,3.26712491,3137.4,3136.8,3.18789]
[1731772626704,3.18772,3137.1,3136.4,6.18829]
[1731772626946,3.18772,3137.1,3136.6,3.0]
[1731772627146,0.1441639,3137.6,3136.6,3.0]
[1731772627147,0.07969491,3137.2,3136.6,3.0]
[1731772627308,0.07969492,3137.4,3136.9,3.18778]
[1731772627712,0.0796936,3137.5,3137.1,3.18759]
[1731772627909,0.0796936,3137.5,3137.2,3.18748]
[1731772628320,0.1441639,3137.6,3137.0,3.18772]
[1731772628600,0.1441639,3137.6,3137.1,3.0]
[1731772628756,0.1441639,3137.6,3137.2,3.18749]
[1731772629555,0.07968709,3137.5,3137.1,3.0]
[1731772630069,0.1441639,3137.6,3137.2,3.18749]
[1731772630350,0.1441639,3137.6,3137.5,3.18725]
[1731772632957,0.1441639,3137.6,3134.1,1.56669811]
[1731772632958,0.1441639,3137.6,3137.2,3.0]
[1731772633156,0.1441639,3137.6,3137.0,3.0]
[1731772633634,3.18725,3137.5,3137.0,3.18768]
[1731772633969,0.22385085,3137.6,3137.1,3.0]
[1731772634123,3.41100085,3137.6,3137.1,3.0]
[1731772634514,3.18725,3137.5,3137.1,3.0]
[1731772634696,0.22385091,3137.6,3137.1,3.0]
[1731772635002,0.22385091,3137.6,3137.1,6.18763]
[1731772635122,0.22385091,3137.6,3137.5,3.18725]
[1731772635123,0.1441639,3137.6,3137.5,3.18725]
[1731772639675,0.1441639,3137.6,3137.3,3.18735]
[1731772639832,0.1441639,3137.6,3137.4,3.18733]
[1731772640038,0.1441639,3137.6,3137.0,3.0]
[1731772640039,0.1441639,3137.6,3137.3,3.0]
[1731772640448,3.3313739,3137.6,3137.1,3.0]
[1731772640639,0.07968457,3137.5,3137.1,3.0]
[1731772640861,0.07968457,3137.5,3136.8,3.18792]
[1731772640862,3.18735,3137.4,3136.9,3.0]
[1731772641125,3.3313739,3137.6,3136.6,3.1881]
[1731772641126,3.18762,3137.2,3136.6,3.1881]
[1731772641356,3.18762,3137.2,3136.6,6.3762]
[1731772641551,3.18762,3137.2,3136.7,3.18804]
[1731772641989,3.267415,3137.1,3136.5,3.18821]
[1731772642137,0.079695,3137.1,3136.6,3.18809]
[1731772642659,0.079695,3137.1,3136.7,6.18798]
[1731772642831,0.07969527,3137.3,3136.7,6.18798]
[1731772643026,3.41103892,3137.6,3136.9,3.18785]
[1731772643254,0.22385892,3137.6,3136.8,3.25171092]
[1731772643459,0.22385892,3137.6,3137.1,3.18763]
[1731772643672,3.41108892,3137.6,3136.9,3.18786]
[1731772643886,3.18737,3137.4,3136.8,3.0]
[1731772644081,3.41108892,3137.6,3136.9,3.18784]
[1731772644364,0.22385892,3137.6,3136.8,3.0]
[1731772644579,3.18742,3137.4,3136.8,3.0]
[1731772644759,3.18761,3137.2,3136.7,3.0]
[1731772644971,3.26736518,3137.1,3136.7,3.0]
[1731772645129,0.07969518,3137.1,3136.7,3.0]
[1731772645330,0.07969515,3137.3,3136.7,6.18805]
[1731772645849,3.18757,3137.2,3136.5,6.18816]
[1731772646050,3.26741513,3137.1,3136.5,3.0]
[1731772646267,3.26741513,3137.1,3136.5,6.18824]
[1731772646446,3.26741513,3137.1,3136.5,3.0]
[1731772646648,0.0796951,3137.2,3136.8,3.18789]
[1731772646854,0.07969508,3137.4,3136.9,3.18783]
[1731772647261,3.26706508,3137.4,3136.9,3.18783]
[1731772647487,3.18746,3137.3,3136.7,6.188]
[1731772647688,0.07969503,3137.2,3136.7,6.188]
[1731772648200,3.26725503,3137.2,3136.7,6.188]
[1731772648499,0.07969503,3137.2,3136.7,6.188]
[1731772648699,3.26715497,3137.3,3136.7,6.188]
[1731772649383,3.18756,3137.2,3136.6,3.0]
[1731772649616,0.07969493,3137.1,3136.6,3.0]
[1731772649962,0.07969493,3137.1,3136.6,6.18812]
[1731772650353,0.07969493,3137.1,3136.0,0.16882632]
[1731772650354,3.26740493,3137.1,3136.4,3.0]
[1731772650556,3.26740493,3137.1,3136.6,3.0]
[1731772650760,3.26740493,3137.1,3136.3,3.18842]
[1731772650761,3.18786,3136.9,3136.4,3.0]
[1731772650991,3.18771,3137.1,3136.4,3.06376312]
[1731772651195,0.07969951,3137.2,3136.6,3.0]
[1731772651405,0.07969951,3137.3,3136.8,3.18793]
[1731772651973,0.07969951,3137.3,3136.6,3.18816]
[1731772652155,0.07969951,3137.3,3136.8,3.18789]
[1731772652356,0.07969951,3137.3,3136.6,3.18816]
[1731772652562,3.18769,3137.1,3136.5,3.0]
[1731772652795,3.18796,3136.8,3136.3,3.3186]
[1731772653313,3.26766351,3136.8,3136.3,3.3186]
[1731772653514,3.18808,3136.7,3136.1,3.18866]
[1731772653863,3.18843,3136.4,3135.7,3.18902]
[1731772654060,3.18843,3136.4,3135.7,3.189]
[1731772654463,3.18807,3136.7,3136.1,3.18859]
[1731772654814,3.18774,3137.1,3136.4,3.18829]
[1731772654998,0.07970594,3137.0,3136.4,3.18829]
[1731772655318,0.07970594,3137.0,3135.9,6.18887]
[1731772655319,0.07970594,3137.0,3136.5,3.18819]
[1731772656306,0.07970594,3137.0,3136.5,3.18818]
[1731772656663,0.07970594,3137.0,3135.9,6.18887]
[1731772656664,3.18793,3136.9,3136.4,3.0]
[1731772656897,3.18812,3136.7,3136.2,3.0]
[1731772657762,3.18812,3136.7,3136.2,6.18855]
[1731772658178,3.81793577,3136.6,3136.0,6.18875]
[1731772658378,3.26762397,3136.9,3136.3,3.18846]
[1731772658711,5.476424,3137.7,3136.4,0.06376563]
[1731772658712,3.18767,3137.1,3136.4,0.06376563]
[1731772658873,3.26737067,3137.1,3136.6,3.18813]
[1731772659921,3.26737067,3137.1,3136.5,3.0]
[1731772660089,3.26737067,3137.1,3136.5,6.1882]
[1731772660281,3.26737067,3137.1,3136.6,3.18816]
[1731772660791,0.07970054,3137.2,3136.9,3.1878]
[1731772661012,0.62969369,3137.4,3136.9,3.1878]
[1731772661378,0.07969369,3137.4,3137.0,3.18772]
[1731772661586,0.07969375,3137.5,3137.0,3.18772]
[1731772661904,0.22385456,3137.6,3137.1,3.18757]
[1731772662690,0.22385456,3137.6,3137.1,3.18758]
[1731772662864,0.22385456,3137.6,3136.9,3.18781]
[1731772662865,3.41108456,3137.6,3136.9,3.18781]
[1731772663113,3.18726,3137.5,3137.0,3.0]
[1731772663312,0.07968908,3137.4,3136.8,3.0]
[1731772663465,3.18782,3137.0,3136.3,0.3186]
[1731772663669,0.07969984,3136.9,3136.4,3.18828]
[1731772663907,3.26755984,3136.9,3136.4,3.18828]
[1731772664066,0.07969984,3136.9,3136.5,3.18826]
[1731772664279,3.18782,3137.0,3136.5,3.18826]
[1731772664509,0.07970045,3136.9,3136.5,3.18826]
[1731772664712,0.07970045,3137.1,3136.5,3.18826]
[1731772664909,3.26743045,3137.1,3136.5,3.18826]
[1731772665672,0.07970045,3137.1,3136.6,3.18816]
[1731772665867,3.26739045,3137.1,3136.6,3.18816]
[1731772666110,0.07970045,3137.1,3136.6,3.18816]
[1731772666551,0.07969383,3137.3,3136.8,3.18795]
[1731772666753,3.18758,3137.2,3136.6,3.18816]
[1731772666952,3.18758,3137.2,3136.6,6.37625]
[1731772667138,0.07969383,3137.3,3136.7,3.18799]
[1731772667322,0.07969383,3137.3,3136.6,3.18809]
[1731772667533,0.07969383,3137.3,3136.8,3.18792]
[1731772668281,0.07969382,3137.4,3137.0,3.18774]
[1731772669148,0.07968897,3137.5,3137.0,3.18774]
[1731772669337,0.07968897,3137.5,3136.9,3.1878]
[1731772669338,3.26696897,3137.5,3136.9,3.1878]
[1731772669681,0.07968897,3137.5,3137.1,3.1876]
[1731772669970,0.07968897,3137.5,3137.0,3.0]
[1731772670174,0.22385287,3137.6,3137.1,3.18762]
[1731772670330,0.22385287,3137.6,3137.1,3.18757]
[1731772670541,0.1441639,3137.6,3137.5,3.18725]
[1731772675065,0.1441639,3137.6,3137.5,6.25098631]
[1731772678268,0.1441639,3137.6,3137.5,9.65751208]
[1731772678588,0.1441639,3137.6,3137.5,6.50585]
[1731772678956,0.1441639,3137.6,3137.5,6.56958214]
[1731772681064,0.1441639,3137.6,3137.5,6.56958087]
[1731772681885,0.1441639,3137.6,3137.5,6.50585]
[1731772682257,0.1441639,3137.6,3137.5,9.59377577]
[1731772682497,0.1441639,3137.6,3137.5,6.50585]
[1731772682956,0.1441639,3137.6,3137.5,6.56957694]
[1731772683416,0.07965819,3139.3,3138.8,3.18593]
[1731772683689,0.01,3140.0,3138.6,3.18611]
[1731772683690,0.0796461,3139.5,3139.2,3.18552]
[1731772683889,0.07963496,3139.7,3139.2,3.18552]
[1731772684100,3.26470496,3139.7,3139.0,3.18569]
[1731772684501,3.5116105,3139.6,3138.8,6.18586]
[1731772684616,3.18538,3139.4,3138.8,3.0]
[1731772684916,3.63792577,3139.2,3137.1,0.01]
[1731772685125,3.18615,3138.6,3137.9,3.18674]
[1731772685334,3.73609,3138.7,3138.1,3.18659]
[1731772685496,0.0796631,3138.6,3138.1,3.18659]
[1731772686212,3.2657931,3138.6,3138.0,3.18671]
[1731772686396,0.0796631,3138.6,3138.1,3.18662]
[1731772686817,0.07966311,3138.8,3138.3,3.18639]
[1731772687145,0.07966311,3138.8,3138.4,3.1863]
[1731772687290,3.19526,3139.5,3138.8,3.18592]
[1731772687291,0.07965728,3139.1,3138.8,3.18592]
[1731772687639,0.07964536,3139.4,3138.8,3.18587]
[1731772687839,0.07964536,3139.4,3138.8,3.18585]
[1731772688339,3.18529,3139.5,3138.4,0.06372582]
[1731772688340,0.07964202,3139.5,3139.0,3.18566]
[1731772688538,0.07964202,3139.5,3139.0,3.18569]
[1731772689133,0.07964202,3139.5,3138.8,3.18593]
[1731772689365,0.0796322,3139.8,3139.3,3.18536]
[1731772689487,0.0796322,3139.8,3139.3,3.18534]
[1731772689688,0.0796322,3139.8,3139.4,3.1853]
[1731772690223,0.0796322,3139.8,3138.9,6.18574]
[1731772690429,3.18518,3139.6,3139.0,3.18571]
[1731772690590,0.07963218,3139.5,3139.0,3.18571]
[1731772691331,0.07963218,3139.5,3138.9,3.18582]
[1731772691332,3.26486218,3139.5,3138.9,3.18582]
[1731772691674,3.26486218,3139.5,3139.0,3.0]
[1731772691698,3.26486218,3139.5,3139.0,6.18572]
[1731772692734,0.0796378,3139.6,3139.0,0.06371024]
[1731772692946,0.07963375,3139.8,3139.3,3.18533]
[1731772693124,0.07963375,3139.9,3139.3,3.18533]
[1731772693292,0.07963375,3139.9,3139.5,3.18519]
[1731772693490,0.37510041,3140.1,3139.7,3.18495]
[1731772693843,0.37510041,3140.1,3139.8,3.18488]
[1731772693999,3.18482,3139.9,3139.1,3.18562]
[1731772694199,0.07962484,3139.8,3139.3,3.18542]
[1731772694618,0.07962872,3139.9,3139.3,3.18534]
[1731772694807,0.07962872,3139.9,3139.5,3.18521]
[1731772695208,0.07962866,3140.1,3139.5,3.18521]
[1731772695503,0.07962866,3140.1,3139.7,3.18497]
[1731772696035,0.07962082,3140.3,3139.9,3.1848]
[1731772697345,0.07962082,3140.3,3139.7,3.18494]
[1731772697554,0.07962082,3140.3,3139.7,6.36988]
[1731772698051,0.07962082,3140.3,3139.8,3.18481]
[1731772698493,0.07962082,3140.3,3139.9,3.18478]
[1731772698734,0.07961786,3140.4,3139.9,3.18478]
[1731772698917,3.26392786,3140.4,3139.9,3.18478]
[1731772699624,0.07961786,3140.4,3139.9,3.18478]
[1731772699827,0.07961582,3140.5,3139.9,3.18478]
[1731772700027,3.60461779,3140.5,3139.9,3.18478]
[1731772700433,0.42040779,3140.5,3139.9,3.18478]
[1731772700773,0.07961582,3140.5,3140.1,3.18459]
[1731772700972,0.07961582,3140.6,3140.1,3.18457]
[1731772701117,0.07961582,3140.6,3140.2,3.1845]
[1731772701319,0.07961582,3140.6,3140.1,3.18457]
[1731772701512,0.07961582,3140.6,3139.9,3.18477]
[1731772701743,0.07961582,3140.6,3140.0,3.0]
[1731772701744,3.18421,3140.5,3140.0,3.0]
[1731772701947,3.18421,3140.5,3140.0,6.1847]
[1731772702667,0.07961582,3140.6,3140.0,6.1847]
[1731772703423,3.26377582,3140.6,3140.0,6.1847]
[1731772703623,0.07961582,3140.6,3140.0,6.1847]
[1731772703919,0.07961582,3140.6,3140.1,3.1846]
[1731772704134,3.26377582,3140.6,3140.0,3.0]
[1731772704545,3.26377582,3140.6,3140.0,3.18471]
[1731772704760,3.26377582,3140.6,3140.1,3.0]
[1731772705845,0.07961582,3140.6,3140.1,3.0]
[1731772706041,0.1441639,3140.7,3140.4,3.18429]
[1731772706239,0.1441639,3140.7,3140.2,3.18449]
[1731772706446,0.1441639,3140.7,3140.2,6.36893]
[1731772706643,0.1441639,3140.7,3140.3,3.18438]
[1731772707277,0.1441639,3140.7,3140.4,3.1843]
[1731772707651,0.1441639,3140.7,3140.2,3.24812304]
[1731772707984,0.1441639,3140.7,3139.9,3.0]
[1731772707985,3.1843,3140.4,3139.9,3.0]
[1731772708193,3.18513,3139.6,3139.0,3.18567]
[1731772708373,3.18513,3139.6,3138.3,3.75100405]
[1731772708374,3.26425067,3140.1,3139.4,3.18524]
[1731772708683,3.18489,3139.9,3139.2,3.18544]
[1731772708890,0.07962588,3139.8,3139.2,3.18544]
[1731772709243,3.18509,3139.7,3139.0,3.18569]
[1731772709734,3.18509,3139.7,3139.1,3.0]
[1731772710125,0.07962588,3139.8,3139.3,3.0]
[1731772710126,3.26454588,3139.8,3139.3,3.0]
[1731772710454,3.26454588,3139.8,3138.8,3.18586]
[1731772710455,3.18529,3139.5,3138.8,3.18586]
[1731772710596,0.07963785,3139.4,3138.9,3.18576]
[1731772711091,0.07963785,3139.4,3138.8,3.18583]
[1731772711241,3.26498785,3139.4,3138.8,3.18583]
[1731772711441,3.26497785,3139.4,3138.7,3.18594]
[1731772711649,3.26497785,3139.4,3138.2,3.35571424]
[1731772711650,0.07963785,3139.4,3139.0,3.0]
[1731772711868,0.07963791,3139.6,3139.0,6.18566]
[1731772712071,3.26481791,3139.6,3139.0,6.18566]
[1731772712281,3.18539,3139.4,3138.9,3.0]
[1731772714983,3.26496461,3139.4,3138.7,6.18599]
[1731772715291,0.07964461,3139.7,3139.2,3.18544]
[1731772715586,0.07964461,3139.7,3139.4,3.18526]
[1731772715796,0.07962706,3140.0,3139.5,3.18521]
[1731772715961,3.26440706,3140.0,3139.4,3.18526]
[1731772716347,3.26440706,3140.0,3139.1,6.18554]
[1731772716348,3.1849,3139.9,3139.1,6.18554]
[1731772716660,0.07963271,3139.8,3139.4,3.0]
[1731772716990,3.18502,3139.7,3139.2,3.0]
[1731772717302,3.18502,3139.7,3138.6,3.18605]
[1731772717303,3.18548,3139.3,3138.6,3.18605]
[1731772717451,3.18548,3139.3,3138.7,3.18602]
[1731772718450,3.18548,3139.3,3138.8,3.0]
[1731772718853,3.18548,3139.3,3138.8,3.18592]
[1731772719047,3.18548,3139.3,3138.9,3.0]
[1731772719246,0.55,3139.3,3138.9,3.0]
[1731772719490,0.07964472,3139.6,3138.9,3.0]
[1731772719696,3.18525,3139.5,3138.9,3.18576]
[1731772719899,0.0796384,3139.4,3138.9,3.18576]
[1731772720050,0.0796384,3139.4,3138.8,3.0]
[1731772720051,3.2650184,3139.4,3138.8,3.0]
[1731772720451,3.18542,3139.3,3138.8,3.0]
[1731772720761,3.26516462,3139.2,3138.8,3.0]
[1731772721075,0.07964462,3139.2,3138.8,3.0]
[1731772722146,3.1857,3139.1,3138.5,3.18621]
[1731772722347,3.1857,3139.1,3137.6,0.01]
[1731772722348,0.07964462,3139.0,3138.1,3.18659]
[1731772722589,3.26543462,3139.0,3138.2,3.18653]
[1731772722923,3.26543462,3139.0,3138.1,3.18659]
[1731772722924,3.18597,3138.8,3138.1,6.37315]
[1731772723127,3.26568838,3138.7,3138.1,3.18656]
[1731772723301,0.07965838,3138.7,3137.9,3.18679]
[1731772723632,0.07965838,3138.7,3137.2,3.354]
[1731772723633,3.1863,3138.5,3138.0,3.18671]
[1731772723787,0.07966234,3138.4,3138.1,3.18658]
[1731772724135,0.07966234,3138.6,3138.1,3.18658]
[1731772724421,3.18624,3138.5,3137.9,3.18679]
[1731772724631,0.07966253,3138.4,3137.9,3.18679]
[1731772724986,0.07966253,3138.4,3138.0,3.18674]
[1731772725322,6.37221,3138.7,3138.0,3.18674]
[1731772725323,0.07966265,3138.6,3138.0,3.18674]
[1731772725529,0.07966265,3138.6,3137.9,3.18679]
[1731772725736,0.07966265,3138.6,3138.4,3.18632]
[1731772726030,0.07965621,3138.8,3138.2,3.18645]
[1731772726181,0.07965621,3138.8,3138.2,3.1865]
[1731772726391,0.07965621,3138.8,3138.2,6.37298]
[1731772726731,0.07965621,3138.8,3138.3,3.18642]
[1731772727439,0.07965621,3138.8,3138.4,3.18632]
[1731772727613,3.26538731,3139.0,3138.4,3.18632]
[1731772728012,3.18549,3139.3,3138.6,3.18607]
[1731772728215,0.0796503,3139.2,3138.2,3.1865]
[1731772728426,3.18602,3138.8,3138.2,3.1865]
[1731772728627,0.07965892,3138.7,3138.2,3.1865]